bitfinex-derivatives/quotes_SOLF0:USTF0_20240904
["timestamp","ask_amount","ask_price","bid_price","bid_amount"]
[1725423800220,0.05130326,127.26,127.25,9.65]
[1725423801126,3.9285,127.3,127.26,3.9292]
[1725423801317,3.9285,127.3,127.27,9.65]
[1725423802332,3.98847968,127.3,127.27,9.70130327]
[1725423803628,3.9286,127.29,127.27,9.70130327]
[1725423807024,3.98837968,127.3,127.27,9.70130327]
[1725423808826,9.70997968,127.3,127.27,0.05130327]
[1725423809028,3.9289,127.28,127.27,0.05130327]
[1725423810132,0.05997968,127.3,127.27,0.05130327]
[1725423810320,9.70997968,127.3,127.27,0.05130327]
[1725423811131,3.9286,127.29,127.27,0.05130327]
[1725423816735,3.98837968,127.3,127.27,0.05130327]
[1725423817035,0.05997968,127.3,127.27,0.05130327]
[1725423817233,0.05997968,127.3,127.27,3.98020327]
[1725423817736,3.98827968,127.3,127.27,0.05130327]
[1725423821939,3.98827968,127.3,127.27,3.98050327]
[1725423823740,3.98827968,127.3,127.27,0.05130327]
[1725423826642,3.9286,127.29,127.27,0.05130327]
[1725423827040,0.05997968,127.3,127.27,3.98040327]
[1725423827240,0.05997968,127.3,127.27,9.70130327]
[1725423827739,0.05997968,127.3,127.28,3.9289]
[1725423829243,0.05997968,127.3,127.27,13.63040327]
[1725423833443,0.05997968,127.3,127.27,0.05130327]
[1725423833444,3.98827968,127.3,127.27,0.05130327]
[1725423835150,3.98827968,127.3,127.2,40.0458]
[1725423835151,9.65,127.29,127.2,1.4458]
[1725423835338,9.65,127.29,127.23,9.65]
[1725423836046,9.65,127.29,127.2,1.4458]
[1725423836239,0.05259899,127.27,127.24,13.5799]
[1725423836444,0.05259899,127.27,127.24,9.65]
[1725423837344,0.05259899,127.27,127.25,3.9298]
[1725423838434,0.05259899,127.27,127.24,13.5801]
[1725423839034,0.05259899,127.27,127.25,3.9297]
[1725423840749,0.05259899,127.27,127.24,13.5801]
[1725423842943,0.05259899,127.27,127.24,3.9301]
[1725423844651,0.05259899,127.27,127.25,3.9297]
[1725423844851,0.05259899,127.27,127.25,13.5797]
[1725423846049,0.05259899,127.27,127.26,3.9295]
[1725423846250,0.05259899,127.27,127.26,13.5795]
[1725423846947,0.05259899,127.27,127.26,17.44855407]
[1725423847153,0.05259899,127.27,127.26,13.5795]
[1725423847347,0.05259899,127.27,127.26,17.46397025]
[1725423847544,0.05259899,127.27,127.26,13.5795]
[1725423847751,0.05259899,127.27,127.26,17.58501607]
[1725423848659,0.05259899,127.27,127.26,13.5795]
[1725423849653,0.05259899,127.27,127.26,17.52449316]
[1725423850056,0.05259899,127.27,127.26,13.5795]
[1725423850252,0.05259899,127.27,127.26,3.9295]
[1725423851159,0.05259899,127.27,127.25,13.5797]
[1725423851858,0.05259899,127.27,127.26,3.9295]
[1725423858270,0.05259899,127.27,127.26,7.77672536]
[1725423858459,0.05259899,127.27,127.26,3.9295]
[1725423862679,0.05259899,127.27,127.26,13.5795]
[1725423864372,0.05259899,127.27,127.25,3.9296]
[1725423864569,0.05259899,127.27,127.25,13.5796]
[1725423864974,0.05259899,127.27,127.26,3.9295]
[1725423870883,0.05259899,127.27,127.25,13.5797]
[1725423871084,0.05259899,127.27,127.25,9.65]
[1725423871485,0.05259899,127.27,127.26,3.9295]
[1725423877987,0.05259899,127.27,127.26,13.5795]
[1725423878584,0.05259899,127.27,127.26,3.9295]
[1725423878787,0.05259899,127.27,127.26,13.5795]
[1725423888702,0.05259899,127.27,127.26,3.9295]
[1725423888898,0.05259899,127.27,127.25,3.9296]
[1725423889903,0.05259899,127.27,127.24,9.65]
[1725423890990,0.05259899,127.27,127.25,3.9296]
[1725423895305,9.70259899,127.27,127.2,1.4458]
[1725423895509,9.65,127.26,127.2,11.0958]
[1725423895703,0.05396898,127.24,127.2,11.0958]
[1725423896401,0.05396898,127.24,127.09,10.95634821]
[1725423896402,9.65,127.21,127.09,10.95634821]
[1725423896609,0.05833879,127.16,127.12,2.8272]
[1725423896811,0.05840534,127.15,127.12,2.8272]
[1725423897012,0.05840534,127.15,127.13,9.65]
[1725423897203,0.05840534,127.15,127.12,2.8272]
[1725423897402,0.05840534,127.15,127.14,9.65]
[1725423899412,0.05840534,127.15,127.14,13.5832]
[1725423900303,0.05840534,127.15,127.09,10.95634821]
[1725423900514,13.60564874,127.14,127.09,14.88132387]
[1725423900805,3.9341,127.12,127.09,14.88132387]
[1725423901011,3.99395485,127.12,127.09,14.88132387]
[1725423901206,0.05985485,127.12,127.09,14.88132387]
[1725423901400,0.05985485,127.12,127.09,10.95634821]
[1725423901610,0.05985485,127.12,127.09,20.60634821]
[1725423902018,3.99375485,127.12,127.09,24.54862663]
[1725423902609,3.99375485,127.12,127.09,20.60634821]
[1725423903209,0.05985485,127.12,127.09,10.95634821]
[1725423903817,0.05985485,127.12,127.09,20.60634821]
[1725423904109,11.85785485,127.12,127.09,10.95634821]
[1725423904313,0.05985485,127.12,127.09,10.95634821]
[1725423905313,3.9343,127.11,127.09,10.95634821]
[1725423906402,0.05985485,127.12,127.09,10.95634821]
[1725423906403,3.99385485,127.12,127.09,10.95634821]
[1725423906608,0.05985485,127.12,127.09,24.52955109]
[1725423907020,7.864,127.18,127.09,24.52955109]
[1725423907021,3.99363246,127.19,127.11,9.65]
[1725423907314,9.65,127.2,127.14,9.65]
[1725423907510,9.65,127.23,127.16,13.5824]
[1725423907809,9.65,127.23,127.16,9.65]
[1725423908016,3.9836634,127.21,127.18,0.0514639]
[1725423908613,0.0523634,127.21,127.19,13.53945251]
[1725423909504,0.0523634,127.21,127.19,17.47095251]
[1725423909911,0.0523634,127.21,127.18,9.7014639]
[1725423910114,0.0523634,127.21,127.2,9.65]
[1725423910308,3.988124,127.26,127.2,13.58584444]
[1725423910511,3.988124,127.26,127.2,17.51694444]
[1725423911216,3.988124,127.26,127.2,9.65]
[1725423911415,0.05968854,127.24,127.22,0.05018349]
[1725423911616,3.98998854,127.24,127.22,0.05018349]
[1725423911921,0.05968854,127.24,127.22,0.05018349]
[1725423913024,11.85398854,127.24,127.22,0.05018349]
[1725423915326,0.05968854,127.24,127.22,0.05018349]
[1725423921122,3.98988854,127.24,127.22,0.05018349]
[1725423921529,0.05968854,127.24,127.22,0.05018349]
[1725423922426,3.9304,127.23,127.22,0.05018349]
[1725423931232,7.864,127.22,127.17,9.65]
[1725423931632,3.9319,127.19,127.17,9.65]
[1725423932138,3.98176649,127.19,127.17,9.70969493]
[1725423933742,0.04986649,127.19,127.18,9.65]
[1725423934636,7.864,127.26,127.18,9.65]
[1725423934835,17.514,127.25,127.19,13.50869688]
[1725423935232,7.864,127.25,127.21,9.65]
[1725423935433,9.65,127.29,127.23,9.65]
[1725423935640,0.05717262,127.27,127.25,0.0516578]
[1725423935841,3.9295,127.26,127.25,0.0516578]
[1725423936331,3.98647262,127.27,127.25,0.0516578]
[1725423936734,0.05717262,127.27,127.25,0.0516578]
[1725423937143,3.9295,127.26,127.25,0.0516578]
[1725423940945,0.05717262,127.27,127.25,0.0516578]
[1725423942343,0.05717262,127.27,127.25,9.7016578]
[1725423942544,0.05717262,127.27,127.25,0.0516578]
[1725423944046,3.98657262,127.27,127.25,0.0516578]
[1725423948938,0.05717262,127.27,127.25,0.0516578]
[1725423949346,3.9289,127.28,127.26,9.65]
[1725423950643,3.98630438,127.28,127.26,9.65]
[1725423950845,11.85030438,127.28,127.26,9.65]
[1725423952049,3.9293,127.27,127.25,1.5293578]
[1725423960356,0.05740438,127.28,127.26,9.65]
[1725423960550,0.05740438,127.28,127.27,9.65]
[1725423960955,0.05740438,127.28,127.26,9.65]
[1725423961150,0.05740438,127.28,127.25,15.1090578]
[1725423961353,0.05740438,127.28,127.25,1.5293578]
[1725423961554,3.98640438,127.28,127.25,1.5293578]
[1725423962349,11.85040438,127.28,127.25,0.0516578]
[1725423967258,3.9293,127.27,127.25,0.0516578]
[1725423967661,0.05740438,127.28,127.25,0.0516578]
[1725423968561,9.65,127.27,127.25,0.0516578]
[1725423968750,7.864,127.26,127.25,0.0516578]
[1725423968956,3.9295,127.26,127.25,0.0516578]
[1725423970058,3.9301,127.24,127.21,3.9309]
[1725423970459,3.90788112,127.25,127.17,4.1797]
[1725423970760,3.9306,127.23,127.19,9.65]
[1725423971262,0.05943251,127.22,127.2,0.05291408]
[1725423971462,3.931,127.21,127.2,0.05291408]
[1725423971663,0.05943251,127.22,127.2,0.05291408]
[1725423972062,3.99043251,127.22,127.2,0.05291408]
[1725423972458,0.05943251,127.22,127.2,9.70291408]
[1725423972662,0.05943251,127.22,127.21,9.65]
[1725423972963,3.9297,127.26,127.21,9.65]
[1725423973265,3.9297,127.26,127.23,9.65]
[1725423973864,7.864,127.25,127.23,0.0509468]
[1725423974164,11.7938,127.25,127.23,0.0509468]
[1725423975060,7.864,127.25,127.23,0.0509468]
[1725423975366,11.73728884,127.25,127.23,0.0509468]
[1725423975566,3.87328884,127.25,127.23,0.0509468]
[1725423976361,3.9301,127.24,127.23,0.0509468]
[1725423976761,13.5801,127.24,127.23,0.0509468]
[1725423977070,3.9311,127.21,127.17,16.4217]
[1725423977268,9.65,127.23,127.17,12.4897]
[1725423977970,0.05517336,127.21,127.19,0.05595615]
[1725423980367,3.98647336,127.21,127.19,0.05595615]
[1725423982772,3.9314,127.2,127.19,0.05595615]
[1725423982964,0.05517336,127.21,127.19,0.05595615]
[1725423983366,11.85037336,127.21,127.19,0.05595615]
[1725423985273,7.91917336,127.21,127.19,0.05595615]
[1725423985470,0.05517336,127.21,127.19,7.93509515]
[1725423987379,0.05517336,127.21,127.2,9.65]
[1725423991780,0.05517336,127.21,127.2,13.5814]
[1725423994389,0.05517336,127.21,127.19,3.98755615]
[1725423994570,0.05517336,127.21,127.19,0.05595615]
[1725423994973,9.65,127.2,127.19,0.05595615]
[1725423996282,13.5814,127.2,127.19,0.05595615]
[1725423996881,3.9314,127.2,127.19,0.05595615]
[1725423997081,13.5814,127.2,127.19,0.05595615]
[1725423999491,3.9314,127.2,127.19,0.05595615]
[1725424003695,9.70517336,127.21,127.19,0.05595615]
[1725424005291,3.9314,127.2,127.19,0.05595615]
[1725424005992,0.05517336,127.21,127.19,0.05595615]
[1725424006897,3.9314,127.2,127.19,0.05595615]
[1725424008294,3.98637336,127.21,127.19,0.05595615]
[1725424009895,0.05517336,127.21,127.19,0.05595615]
[1725424010492,13.5814,127.2,127.19,0.05595615]
[1725424013097,3.9327,127.16,127.11,9.65]
[1725424013794,3.9327,127.16,127.12,7.80076868]
[1725424014200,0.05258802,127.15,127.13,0.05649431]
[1725424022002,3.98548802,127.15,127.13,0.05649431]
[1725424022600,3.9332,127.14,127.13,0.05649431]
[1725424026701,13.5832,127.14,127.13,0.05649431]
[1725424031821,3.9332,127.14,127.13,0.05649431]
[1725424041723,13.63568802,127.15,127.13,0.05649431]
[1725424042626,0.05258802,127.15,127.13,0.05649431]
[1725424043220,0.05258802,127.15,127.13,3.98979431]
[1725424043523,0.05258802,127.15,127.13,0.05649431]
[1725424045422,3.98558802,127.15,127.13,0.05649431]
[1725424046133,3.9332,127.14,127.13,0.05649431]
[1725424047329,3.98558802,127.15,127.13,0.05649431]
[1725424047635,9.65,127.14,127.13,0.05649431]
[1725424048030,13.5832,127.14,127.13,0.05649431]
[1725424050334,21.4472,127.14,127.13,0.05649431]
[1725424053431,11.7972,127.14,127.13,0.05649431]
[1725424053634,13.5832,127.14,127.13,0.05649431]
[1725424055635,3.9332,127.14,127.13,0.05649431]
[1725424055834,13.5832,127.14,127.13,0.05649431]
[1725424063147,9.65,127.11,127.07,3.9351]
[1725424063643,13.5843,127.11,127.07,3.9351]
[1725424063846,3.9343,127.11,127.07,5.2786]
[1725424064144,0.05038442,127.1,127.07,6.6169]
[1725424064846,0.05038442,127.1,127.07,2.6818]
[1725424065440,9.65,127.08,127.0,1.3435]
[1725424065648,0.05682281,127.05,127.02,9.65]
[1725424065847,0.05682281,127.05,127.03,3.9364]
[1725424066540,3.9355,127.07,127.04,13.5863]
[1725424066739,3.9355,127.07,127.04,17.47880861]
[1725424067139,9.65,127.08,127.01,1.4634]
[1725424067447,9.65,127.03,127.0,2.6818]
[1725424067642,9.70835928,127.03,127.0,6.74677587]
[1725424067845,0.05835928,127.03,127.01,9.65]
[1725424068037,9.65,127.07,127.01,9.65]
[1725424068435,3.9357,127.06,127.02,3.9367]
[1725424068843,3.9355,127.07,127.03,3.9365]
[1725424069147,0.05410366,127.06,127.04,0.04990672]
[1725424078453,13.586,127.05,127.04,0.04990672]
[1725424079152,3.936,127.05,127.04,0.04990672]
[1725424080553,17.514,127.05,126.97,3.9382]
[1725424080748,9.65,127.03,126.98,1.4207]
[1725424081153,9.65,127.03,126.98,5.3588]
[1725424081345,9.65,127.03,126.99,3.87899338]
[1725424081647,0.05805029,127.02,127.0,0.05727234]
[1725424082355,39.69,127.09,127.01,9.65]
[1725424082356,7.864,127.09,127.01,9.65]
[1725424082552,13.63528875,127.08,127.03,9.65]
[1725424083454,0.04978589,127.07,127.04,0.05552235]
[1725424084960,13.63528589,127.07,127.04,0.05552235]
[1725424088860,3.9359,127.06,127.04,0.05552235]
[1725424089563,3.98930525,127.12,127.05,9.65]
[1725424089756,17.514,127.13,127.04,3.99521009]
[1725424089953,17.514,127.13,127.07,9.65]
[1725424090160,13.5928539,127.12,127.02,2.8482]
[1725424090362,9.65,127.12,127.05,9.65]
[1725424090558,0.05571024,127.1,127.07,0.05201361]
[1725424091159,9.70571024,127.1,127.07,0.05201361]
[1725424091365,3.9348,127.09,127.07,0.05201361]
[1725424091957,3.9351,127.08,127.07,0.05201361]
[1725424095667,13.5851,127.08,127.07,0.05201361]
[1725424099661,21.4491,127.08,127.07,0.05201361]
[1725424103767,3.9371,127.02,126.98,3.9381]
[1725424104168,3.9371,127.02,126.97,12.4078]
[1725424104564,3.9371,127.02,126.97,16.3461]
[1725424104761,0.05094093,127.01,126.98,0.06049679]
[1725424105469,3.98844093,127.01,126.98,0.06049679]
[1725424107074,0.05094093,127.01,126.98,9.71049679]
[1725424107475,0.05094093,127.01,126.98,0.06049679]
[1725424109768,3.9378,127.0,126.98,0.06049679]
[1725424111775,9.65,127.0,126.98,0.06049679]
[1725424112474,3.9379,126.99,126.98,0.06049679]
[1725424113068,17.58518586,127.0,126.98,0.06049679]
[1725424113975,3.9379,126.99,126.98,0.06049679]
[1725424114580,3.99748586,127.0,126.98,0.06049679]
[1725424114876,13.64748586,127.0,126.98,0.06049679]
[1725424115876,0.05094093,127.01,126.98,0.06049679]
[1725424116082,0.05094093,127.01,126.98,9.71049679]
[1725424116383,0.05094093,127.01,126.98,13.64849679]
[1725424117883,0.05094093,127.01,126.99,3.9377]
[1725424118081,0.05094093,127.01,126.99,9.65]
[1725424118680,0.05094093,127.01,127.0,3.9375]
[1725424118985,0.05094093,127.01,127.0,13.5875]
[1725424123683,3.9367,127.03,127.01,3.9372]
[1725424124877,3.98894493,127.03,127.01,3.99036727]
[1725424125290,0.05224493,127.03,127.01,3.99036727]
[1725424127489,118.85774241,127.09,127.02,3.96890385]
[1725424127691,9.65,127.07,127.02,13.61890385]
[1725424127884,9.65,127.07,127.03,3.9365]
[1725424127885,13.5856,127.07,127.03,3.9365]
[1725424128487,0.05986591,127.06,127.04,0.05131243]
[1725424129390,3.936,127.05,127.04,0.05131243]
[1725424129784,13.586,127.05,127.04,0.05131243]
[1725424131489,21.45,127.05,127.04,0.05131243]
[1725424131693,13.586,127.05,127.04,0.05131243]
[1725424136288,9.65,127.05,126.97,5.35416338]
[1725424136591,9.65,127.01,126.97,9.29246338]
[1725424136991,13.5873,127.01,126.97,9.29246338]
[1725424137296,0.05995014,127.0,126.98,0.05622846]
[1725424145802,9.70995014,127.0,126.98,0.05622846]
[1725424145998,9.65,126.99,126.98,0.05622846]
[1725424146796,13.5879,126.99,126.98,0.05622846]
[1725424147195,17.514,126.99,126.89,1.4601]
[1725424147396,13.589,126.96,126.91,3.9401]
[1725424148006,3.9391,126.95,126.91,3.9401]
[1725424148203,0.05694446,126.94,126.92,0.0511989]
[1725424148513,7.88,127.02,126.93,9.65]
[1725424148707,1.3637,127.07,126.95,38.6]
[1725424148914,7.9099707,127.06,126.94,2.9051]
[1725424149110,3.9741707,127.06,127.0,9.65]
[1725424149309,13.6241707,127.06,127.0,13.63559187]
[1725424149608,0.05015875,127.04,127.02,0.05267039]
[1725424150507,0.05015875,127.04,127.02,3.98947039]
[1725424150712,0.05015875,127.04,127.02,0.05267039]
[1725424160520,0.05015875,127.04,127.02,3.98937039]
[1725424161721,0.05015875,127.04,127.03,3.9366]
[1725424164424,0.05015875,127.04,127.02,3.98947039]
[1725424165119,3.98665875,127.04,127.02,0.05267039]
[1725424167327,3.9366,127.03,127.02,0.05267039]
[1725424168439,3.98665875,127.04,127.02,0.05267039]
[1725424172633,0.05015875,127.04,127.03,3.9366]
[1725424175636,0.05015875,127.04,127.02,0.05267039]
[1725424176538,3.9366,127.03,127.02,0.05267039]
[1725424177237,0.05015875,127.04,127.02,0.05267039]
[1725424177945,3.98665875,127.04,127.02,0.05267039]
[1725424186347,0.05015875,127.04,127.02,0.05267039]
[1725424187240,0.05015875,127.04,127.02,3.98947039]
[1725424188446,0.05015875,127.04,127.02,0.05267039]
[1725424188941,0.05015875,127.04,127.02,3.98947039]
[1725424192249,0.05015875,127.04,127.02,0.05267039]
[1725424194345,0.05015875,127.04,127.02,3.98937039]
[1725424201856,0.05015875,127.04,127.02,0.05267039]
[1725424203665,3.98645875,127.04,127.02,0.05267039]
[1725424204058,0.05015875,127.04,127.02,0.05267039]
[1725424204454,0.05015875,127.04,127.03,9.67]
[1725424204760,0.05015875,127.04,127.03,13.6066]
[1725424207060,0.05015875,127.04,127.03,3.9366]
[1725424207357,0.05015875,127.04,127.02,3.98937039]
[1725424209861,0.05015875,127.04,127.03,3.9366]
[1725424213360,7.88,127.08,127.04,3.9361]
[1725424213555,3.88087931,127.09,127.03,9.67]
[1725424213756,3.88087931,127.09,127.0,40.1292]
[1725424213757,238.0196,127.13,127.06,9.67]
[1725424213957,11.0196,127.13,127.07,3.9352]
[1725424214264,9.67,127.14,127.08,9.67]
[1725424214459,0.05416105,127.12,127.1,0.05411164]
[1725424216169,0.05416105,127.12,127.1,3.98831164]
[1725424216671,0.05416105,127.12,127.1,13.65831164]
[1725424217461,0.05416105,127.12,127.11,3.9341]
[1725424217861,0.05416105,127.12,127.11,13.6041]
[1725424218265,0.05416105,127.12,127.11,15.0125]
[1725424218659,0.05416105,127.12,127.11,13.6041]
[1725424218860,0.05416105,127.12,127.1,9.72411164]
[1725424219067,0.05416105,127.12,127.11,9.67]
[1725424220265,11.74665424,127.19,127.11,9.67]
[1725424220460,11.74665424,127.19,127.14,9.67]
[1725424220873,3.9324,127.17,127.14,9.67]
[1725424221275,0.05870905,127.17,127.14,13.6380591]
[1725424221567,0.05870905,127.17,127.16,9.67]
[1725424221771,7.88,127.22,127.16,13.52540438]
[1725424221968,7.88,127.22,127.19,9.67]
[1725424221969,3.9309,127.22,127.19,9.67]
[1725424222771,3.99003358,127.22,127.19,9.72954359]
[1725424223176,0.05913358,127.22,127.19,13.66114359]
[1725424223974,0.05913358,127.22,127.19,3.99114359]
[1725424227185,3.98993358,127.22,127.19,0.05954359]
[1725424228886,0.05913358,127.22,127.19,0.05954359]
[1725424229583,3.98983358,127.22,127.19,0.05954359]
[1725424230188,0.05913358,127.22,127.19,3.99124359]
[1725424230379,0.05913358,127.22,127.2,24.15]
[1725424230586,0.05913358,127.22,127.21,24.15]
[1725424231288,0.05913358,127.22,127.21,28.081]
[1725424232196,0.05913358,127.22,127.2,24.15]
[1725424232790,0.05913358,127.22,127.2,28.0812]
[1725424233793,7.88,127.31,127.21,24.15]
[1725424234085,7.88,127.31,127.24,24.15]
[1725424234687,3.929,127.28,127.24,28.0801]
[1725424234892,0.05750187,127.27,127.25,0.05431035]
[1725424237693,0.05750187,127.27,127.25,3.98411035]
[1725424238199,0.05750187,127.27,127.25,0.05431035]
[1725424239288,0.05750187,127.27,127.26,24.15]
[1725424239995,0.05750187,127.27,127.26,28.0795]
[1725424240782,3.9281,127.31,127.28,3.9288]
[1725424240987,2.8371,127.35,127.28,24.15]
[1725424241489,3.9281,127.31,127.28,24.15]
[1725424241991,3.98017126,127.31,127.28,24.20651018]
[1725424242190,3.98017126,127.31,127.28,0.05651018]
[1725424242391,0.05207126,127.31,127.28,0.05651018]
[1725424243092,3.9286,127.29,127.28,0.05651018]
[1725424250404,0.05207126,127.31,127.28,0.05651018]
[1725424251001,3.9286,127.29,127.28,0.05651018]
[1725424251198,7.86472076,127.29,127.28,0.05651018]
[1725424251399,3.9286,127.29,127.28,0.05651018]
[1725424251905,7.88122277,127.29,127.28,0.05651018]
[1725424259909,13.5786,127.29,127.28,0.05651018]
[1725424260108,3.9303,127.24,127.22,9.65]
[1725424260811,3.9299,127.25,127.22,9.65]
[1725424261112,3.98471562,127.25,127.23,9.65]
[1725424261309,0.05481562,127.25,127.24,9.65]
[1725424261515,3.98499449,127.29,127.24,9.65]
[1725424261710,7.88,127.31,127.27,9.65]
[1725424261912,3.9293,127.27,127.25,24.13]
[1725424262613,3.98413458,127.27,127.25,24.17974288]
[1725424264213,0.05483458,127.27,127.25,24.17974288]
[1725424264415,3.7122,127.34,127.25,24.17974288]
[1725424264721,3.9279,127.32,127.28,24.13]
[1725424265204,32.01,127.35,127.28,24.13]
[1725424265409,230.571,127.37,127.28,24.13]
[1725424265410,0.0529948,127.33,127.3,24.18890927]
[1725424265813,3.9277,127.32,127.3,24.18890927]
[1725424272409,3.9803948,127.33,127.3,24.18890927]
[1725424272619,0.0529948,127.33,127.3,24.18890927]
[1725424273118,0.0529948,127.33,127.3,28.11710927]
[1725424273320,0.0529948,127.33,127.31,24.13]
[1725424277123,0.0529948,127.33,127.31,28.0579]
[1725424277421,0.0529948,127.33,127.31,24.13]
[1725424277616,0.0529948,127.33,127.32,5.3381]
[1725424279120,3.9266,127.36,127.32,5.3381]
[1725424280226,0.05395145,127.35,127.33,0.06044929]
[1725424281325,0.05395145,127.35,127.33,28.11774929]
[1725424283324,0.05395145,127.35,127.33,24.19044929]
[1725424283523,0.05395145,127.35,127.34,28.057]
[1725424283924,0.05395145,127.35,127.34,13.577]
[1725424290737,0.05395145,127.35,127.34,17.54268734]
[1725424290927,101.74159052,127.4,127.34,13.61568734]
[1725424291121,101.74159052,127.4,127.36,9.65]
[1725424291433,105.66689052,127.4,127.36,13.5762]
[1725424291820,101.74159052,127.4,127.37,0.05901537]
[1725424292021,0.05459914,127.39,127.37,0.05901537]
[1725424292422,9.65,127.38,127.37,0.05901537]
[1725424292835,17.53,127.38,127.32,1.4104]
[1725424293022,9.65,127.36,127.32,1.4104]
[1725424293230,7.88,127.38,127.32,1.4104]
[1725424293231,17.53,127.38,127.32,11.0604]
[1725424293732,3.9266,127.36,127.32,14.988]
[1725424293932,0.05681715,127.35,127.33,9.71010129]
[1725424295736,0.05681715,127.35,127.34,9.65]
[1725424295929,0.05681715,127.35,127.34,13.48656109]
[1725424296134,109.62159052,127.4,127.34,13.48656109]
[1725424296334,109.62159052,127.4,127.37,9.65]
[1725424296525,3.9256,127.39,127.37,9.65]
[1725424296928,101.74159052,127.4,127.37,9.65]
[1725424297233,105.72715924,127.4,127.37,9.7024356]
[1725424298039,3.9256,127.39,127.37,9.7024356]
[1725424298241,3.9256,127.39,127.37,0.0524356]
[1725424303345,105.72695924,127.4,127.37,9.7024356]
[1725424304342,0.06016872,127.4,127.37,13.6285356]
[1725424304544,0.06016872,127.4,127.39,9.65]
[1725424308645,0.06016872,127.4,127.39,13.5755]
[1725424310049,0.06016872,127.4,127.39,28.0355]
[1725424311646,0.06016872,127.4,127.39,24.11]
[1725424315751,0.06016872,127.4,127.38,24.11]
[1725424315948,0.06016872,127.4,127.37,0.0524356]
[1725424316844,3.9255,127.39,127.37,0.0524356]
[1725424317046,0.06016872,127.4,127.37,0.0524356]
[1725424317552,3.9255,127.39,127.37,0.0524356]
[1725424317951,0.06016872,127.4,127.37,0.0524356]
[1725424318153,3.9258,127.38,127.37,0.0524356]
[1725424320651,3.9256,127.39,127.37,0.0524356]
[1725424320950,0.06016872,127.4,127.37,0.0524356]
[1725424321150,3.9257,127.39,127.37,0.0524356]
[1725424322651,3.98546872,127.4,127.37,0.0524356]
[1725424322848,3.98546872,127.4,127.38,24.11]
[1725424323048,0.06016872,127.4,127.39,24.11]
[1725424323453,0.06016872,127.4,127.38,24.11]
[1725424325651,0.06016872,127.4,127.39,24.11]
[1725424326250,0.06016872,127.4,127.39,28.0355]
[1725424326451,3.9244,127.43,127.39,28.0355]
[1725424326650,3.9241,127.44,127.39,28.0355]
[1725424327355,0.05031642,127.43,127.4,0.06016502]
[1725424327557,0.05031642,127.43,127.41,28.0348]
[1725424327751,0.05031642,127.43,127.41,24.11]
[1725424331955,0.05031642,127.43,127.42,9.64]
[1725424337860,0.05031642,127.43,127.4,0.06016502]
[1725424340861,3.9249,127.41,127.4,0.06016502]
[1725424342265,0.05031642,127.43,127.4,0.06016502]
[1725424342564,0.05031642,127.43,127.41,9.64]
[1725424342771,0.05031642,127.43,127.42,9.64]
[1725424345569,0.05031642,127.43,127.41,9.64]
[1725424348375,9.69031642,127.43,127.4,0.06016502]
[1725424349269,3.9249,127.41,127.4,0.06016502]
[1725424354079,3.9247,127.42,127.4,0.06016502]
[1725424354878,3.9247,127.42,127.4,9.70016502]
[1725424356572,3.97471642,127.43,127.4,9.70016502]
[1725424358181,0.05031642,127.43,127.42,9.64]
[1725424358675,3.97461642,127.43,127.41,9.64]
[1725424359269,0.05031642,127.43,127.41,9.64]
[1725424361681,121.55224023,127.5,127.42,9.64]
[1725424361978,121.55224023,127.5,127.4,38.62016502]
[1725424361979,3.85909858,127.49,127.46,9.64]
[1725424362275,3.9229,127.48,127.46,9.64]
[1725424362682,3.97361273,127.48,127.46,9.69588973]
[1725424368680,0.05071273,127.48,127.46,9.69588973]
[1725424371181,3.97361273,127.48,127.46,0.05588973]
[1725424372196,0.05071273,127.48,127.46,9.69588973]
[1725424372883,3.97351273,127.48,127.46,9.69588973]
[1725424373880,3.97351273,127.48,127.46,0.05588973]
[1725424375175,3.923,127.47,127.46,0.05588973]
[1725424384890,17.52,127.47,127.41,1.3622]
[1725424385092,9.64,127.44,127.37,2.7442]
[1725424385300,9.64,127.43,127.37,12.3842]
[1725424385595,3.9251,127.41,127.37,12.3842]
[1725424385797,3.9251,127.41,127.38,9.64]
[1725424386182,3.97916727,127.41,127.38,9.69510997]
[1725424387188,0.05406727,127.41,127.4,9.64]
[1725424388901,0.05406727,127.41,127.4,13.5652]
[1725424390501,3.924,127.44,127.4,13.5652]